bitfinex-derivatives/quotes_BTCF0:USTF0_20251208
["timestamp","ask_amount","ask_price","bid_price","bid_amount"]
[1765158340714,0.27458251,91281.0,91280.0,0.15814]
[1765158341223,0.35162251,91281.0,91280.0,0.15814]
[1765158341419,0.07704,91276.0,91273.0,0.05069]
[1765158341731,0.07704,91276.0,91275.0,0.15814]
[1765158342026,0.02458115,91276.0,91275.0,0.15814]
[1765158343830,0.00016432,91283.0,91282.0,0.14987]
[1765158344025,0.0109548,91277.0,91273.0,0.05069]
[1765158344231,0.06625,91274.0,91273.0,0.20056]
[1765158344626,0.25,91274.0,91273.0,0.07669]
[1765158344923,0.3825,91274.0,91273.0,0.07669]
[1765158345228,0.1325,91265.0,91264.0,0.07685432]
[1765158345827,0.1325,91265.0,91264.0,0.15003432]
[1765158346025,0.06625,91265.0,91264.0,0.15003432]
[1765158346423,0.001,91274.0,91273.0,0.14987]
[1765158346928,0.0109542,91282.0,91281.0,0.14987]
[1765158347128,0.3272042,91282.0,91281.0,0.14987]
[1765158347324,0.34084,91282.0,91281.0,0.14987]
[1765158347731,0.40709,91282.0,91281.0,0.14987]
[1765158348532,0.1434552,91273.0,91264.0,0.00016432]
[1765158348829,0.0772045,91279.0,91278.0,0.14987]
[1765158349032,0.33084239,91279.0,91278.0,0.1608246]
[1765158349528,0.26459239,91279.0,91278.0,0.1608246]
[1765158349733,0.24,91279.0,91278.0,0.1608246]
[1765158350131,0.242,91279.0,91278.0,0.1608246]
[1765158351524,0.24,91279.0,91278.0,0.1608246]
[1765158351726,0.001,91279.0,91278.0,0.1608246]
[1765158352525,0.00016432,91283.0,91282.0,0.1608241]
[1765158353020,0.20196,91297.0,91278.0,0.0109546]
[1765158353021,0.0109524,91297.0,91296.0,0.19517]
[1765158353223,0.27458793,91297.0,91296.0,0.19517]
[1765158354228,0.40708793,91297.0,91296.0,0.19517]
[1765158354929,0.40708793,91297.0,91287.0,0.00016432]
[1765158354930,0.1325,91288.0,91287.0,0.00016432]
[1765158355135,0.3825,91288.0,91287.0,0.00016432]
[1765158356226,0.40709922,91288.0,91287.0,0.00016432]
[1765158356736,0.40809922,91288.0,91287.0,0.00016432]
[1765158357332,0.40809922,91288.0,91260.0,0.23936177]
[1765158357333,0.10968,91273.0,91260.0,0.05069]
[1765158357535,0.39523442,91273.0,91272.0,0.11107]
[1765158358030,0.39523442,91273.0,91272.0,0.17639]
[1765158358626,0.1206358,91268.0,91267.0,0.06577]
[1765158358824,0.3706358,91268.0,91267.0,0.06577]
[1765158359224,0.00016432,91282.0,91281.0,0.13109]
[1765158359434,0.32984432,91282.0,91281.0,0.13109]
[1765158359634,0.3544704,91282.0,91281.0,0.13109]
[1765158360837,0.2747904,91282.0,91281.0,0.13109]
[1765158361227,0.0247904,91282.0,91281.0,0.13109]
[1765158365432,0.00627024,91282.0,91278.0,0.04055]
[1765158365639,0.1403019,91301.0,91300.0,0.13109]
[1765158365937,0.3903019,91301.0,91300.0,0.13109]
[1765158366238,0.3903019,91301.0,91300.0,0.06577]
[1765158366532,0.06499,91292.0,91291.0,0.06548432]
[1765158366736,0.12935,91301.0,91300.0,0.13109]
[1765158366931,0.37935,91301.0,91300.0,0.13109]
[1765158367339,0.12935,91295.0,91294.0,0.1420426]
[1765158367841,0.12935,91292.0,91291.0,0.00016432]
[1765158368138,0.37935,91292.0,91291.0,0.00016432]
[1765158368538,0.37935,91292.0,91291.0,0.13125432]
[1765158368938,0.13935,91292.0,91291.0,0.13125432]
[1765158369240,0.13035,91292.0,91291.0,0.13125432]
[1765158369435,0.38035,91292.0,91291.0,0.13125432]
[1765158370035,0.12935,91268.0,91267.0,0.1420459]
[1765158370540,0.14228,91278.0,91277.0,0.0109547]
[1765158370740,0.39228,91278.0,91277.0,0.0109547]
[1765158370927,0.06499,91274.0,91273.0,0.1420451]
[1765158371133,0.06499,91274.0,91273.0,0.13109]
[1765158371741,0.12935,91274.0,91273.0,0.13109]
[1765158372242,0.14011,91272.0,91271.0,0.0109554]
[1765158372442,0.14011,91272.0,91271.0,0.1533354]
[1765158372632,0.14011,91272.0,91271.0,0.14238]
[1765158372833,0.14011,91272.0,91268.0,0.00016432]
[1765158372834,0.14011,91269.0,91268.0,0.00016432]
[1765158373041,0.39011,91269.0,91268.0,0.00016432]
[1765158374035,0.39011,91269.0,91268.0,0.14254432]
[1765158374340,0.39011,91269.0,91268.0,0.00016432]
[1765158374942,0.39111,91269.0,91268.0,0.00016432]
[1765158375139,0.39111,91269.0,91268.0,0.14254432]
[1765158375844,0.39111,91269.0,91268.0,0.06729432]
[1765158377339,0.39111,91269.0,91268.0,0.14254432]
[1765158377648,0.41571116,91269.0,91268.0,0.14254432]
[1765158377938,0.41571116,91269.0,91268.0,0.00016432]
[1765158378545,0.14011,91253.0,91252.0,0.0780877]
[1765158378838,0.16471114,91253.0,91252.0,0.0780877]
[1765158379042,0.16471114,91253.0,91252.0,0.1533377]
[1765158379240,0.14011,91253.0,91252.0,0.1533377]
[1765158379446,0.16470603,91253.0,91252.0,0.1533377]
[1765158379947,0.00016432,91262.0,91261.0,0.06713]
[1765158380141,0.39027432,91262.0,91261.0,0.06713]
[1765158380337,0.41487003,91262.0,91261.0,0.06713]
[1765158380842,0.02476003,91262.0,91261.0,0.14238]
[1765158381144,0.00016432,91262.0,91261.0,0.14238]
[1765158384341,0.14027432,91262.0,91261.0,0.14238]
[1765158384736,0.0747,91257.0,91256.0,0.0109572]
[1765158384945,0.14011,91257.0,91256.0,0.1533372]
[1765158386347,0.14011,91257.0,91256.0,0.1543372]
[1765158386548,0.39011,91257.0,91256.0,0.001]
[1765158386949,0.06541,91250.0,91249.0,0.153338]
[1765158387356,0.1510669,91259.0,91258.0,0.078087]
[1765158387651,0.21565517,91259.0,91258.0,0.06713]
[1765158387861,0.191588,91250.0,91245.0,0.0109585]
[1765158388153,0.06541,91250.0,91249.0,0.14238]
[1765158388353,0.14011,91250.0,91249.0,0.14238]
[1765158388658,0.39011,91250.0,91249.0,0.14238]
[1765158389255,0.00016432,91262.0,91240.0,0.15253761]
[1765158389256,0.14027432,91262.0,91261.0,0.1533367]
[1765158389449,0.42581409,91262.0,91261.0,0.14238]
[1765158389950,0.16485759,91262.0,91261.0,0.14238]
[1765158390151,0.02474759,91262.0,91261.0,0.14238]
[1765158390554,0.00016432,91262.0,91261.0,0.14238]
[1765158390852,0.04052,91290.0,91261.0,0.54238]
[1765158391062,0.02457771,91289.0,91288.0,0.1533334]
[1765158391258,0.02457771,91289.0,91288.0,0.14238]
[1765158391852,0.41468771,91289.0,91288.0,0.14238]
[1765158392056,0.14011,91284.0,91283.0,0.078084]
[1765158392257,0.14011,91284.0,91283.0,0.153334]
[1765158393469,0.001,91284.0,91283.0,0.153334]
[1765158394068,0.14111,91284.0,91283.0,0.153334]
[1765158395271,0.001,91284.0,91283.0,0.153334]
[1765158396574,0.001,91284.0,91279.0,0.00016432]
[1765158396575,0.0763624,91297.0,91296.0,0.06713]
[1765158396778,0.42545742,91297.0,91296.0,0.06713]
[1765158397975,0.42545742,91297.0,91296.0,0.14238]
[1765158399467,0.41650502,91297.0,91296.0,0.14238]
[1765158399669,0.16650502,91297.0,91296.0,0.14238]
[1765158400268,0.02639502,91297.0,91296.0,0.14238]
[1765158400569,0.14211,91297.0,91296.0,0.14238]
[1765158401774,0.14011,91297.0,91296.0,0.14238]
[1765158401975,0.14211,91297.0,91296.0,0.14238]
[1765158402571,0.14011,91297.0,91296.0,0.14238]
[1765158402768,0.14111,91297.0,91296.0,0.14238]
[1765158403868,0.001,91297.0,91296.0,0.17808]
[1765158404874,0.07446,91297.0,91296.0,0.17808]
[1765158406474,0.07446,91297.0,91283.0,0.00972951]
[1765158406475,0.13748,91289.0,91288.0,0.13655]
[1765158406679,0.13748,91289.0,91279.0,0.13671432]
[1765158406680,0.13748,91280.0,91279.0,0.13671432]
[1765158407277,0.13748,91280.0,91279.0,0.00016432]
[1765158407278,0.38748,91280.0,91279.0,0.00016432]
[1765158407672,0.41184778,91280.0,91279.0,0.00016432]
[1765158408790,0.41184778,91280.0,91279.0,0.13671432]
[1765158408791,0.16384778,91280.0,91279.0,0.13671432]
[1765158409287,0.002,91280.0,91279.0,0.13671432]
[1765158409471,0.13948,91280.0,91279.0,0.13671432]
[1765158410781,0.13748,91280.0,91279.0,0.13671432]
[1765158411380,0.0109534,91288.0,91284.0,0.0109539]
[1765158411586,0.0944134,91288.0,91287.0,0.13655]
[1765158411884,0.17185977,91288.0,91287.0,0.13655]
[1765158412275,0.09783977,91288.0,91287.0,0.13655]
[1765158412480,0.02637977,91288.0,91287.0,0.13655]
[1765158412683,0.13948,91288.0,91287.0,0.13655]
[1765158413981,0.11327761,91300.0,91280.0,0.04132]
[1765158413982,0.1484328,91294.0,91293.0,0.13655]
[1765158414173,0.42281415,91294.0,91293.0,0.13655]
[1765158414378,0.41186135,91294.0,91293.0,0.13655]
[1765158414578,0.16186135,91294.0,91293.0,0.13655]
[1765158414784,0.18186135,91294.0,91293.0,0.13655]
[1765158415177,0.26438135,91294.0,91281.0,0.0814642]
[1765158415381,0.26438135,91294.0,91256.0,0.07051]
[1765158415382,0.13748,91257.0,91256.0,0.07051]
[1765158415580,0.02095,91270.0,91256.0,0.13655]
[1765158415581,0.11327761,91266.0,91256.0,0.13655]
[1765158415893,0.16187693,91265.0,91264.0,0.13655]
[1765158416088,0.42283313,91265.0,91264.0,0.13655]
[1765158416275,0.0844173,91256.0,91255.0,0.13655]
[1765158416475,0.13748,91256.0,91255.0,0.07051]
[1765158416890,0.1484378,91252.0,91251.0,0.07051]
[1765158417086,0.1484378,91252.0,91251.0,0.13655]
[1765158417388,0.07346,91252.0,91251.0,0.1475079]
[1765158417581,0.06189,91257.0,91256.0,0.1389672]
[1765158418389,0.08628835,91257.0,91256.0,0.1389672]
[1765158418891,0.08628835,91257.0,91256.0,0.1409672]
[1765158419088,0.14794835,91257.0,91256.0,0.1409672]
[1765158419292,0.14794835,91257.0,91256.0,0.13001]
[1765158419488,0.39794835,91257.0,91256.0,0.002]
[1765158419683,0.14794835,91257.0,91256.0,0.1409673]
[1765158419884,0.39794835,91257.0,91256.0,0.13001]
[1765158420084,0.39794835,91257.0,91256.0,0.06582]
[1765158420492,0.39794835,91257.0,91256.0,0.002]
[1765158422788,0.39794835,91257.0,91256.0,0.1409673]
[1765158423289,0.37355,91257.0,91256.0,0.1409673]
[1765158423595,0.37355,91257.0,91256.0,0.002]
[1765158424991,0.41055,91257.0,91256.0,0.002]
[1765158427990,0.1345083,91247.0,91230.0,0.04132]
[1765158428194,0.12355,91232.0,91231.0,0.12801]
[1765158429100,0.12355,91232.0,91231.0,0.06382]
[1765158429293,0.12355,91232.0,91231.0,0.0747803]
[1765158429805,0.12355,91232.0,91231.0,0.1389703]
[1765158430292,0.037,91232.0,91231.0,0.1389703]
[1765158430497,0.037,91232.0,91231.0,0.1409703]
[1765158431291,0.16055,91232.0,91231.0,0.1409703]
[1765158432286,0.16055,91232.0,91231.0,0.0129603]
[1765158432696,0.16055,91232.0,91231.0,0.002]
[1765158432887,0.41055,91232.0,91231.0,0.002]
[1765158433093,0.12064,91214.0,91213.0,0.1344023]
[1765158433294,0.12064,91214.0,91213.0,0.1344024]
[1765158434000,0.12080442,91223.0,91222.0,0.12344]
[1765158434194,0.37090021,91223.0,91222.0,0.12344]
[1765158434994,0.37090021,91223.0,91220.0,0.0109615]
[1765158434995,0.12064,91221.0,91220.0,0.0727715]
[1765158435191,0.12064,91221.0,91220.0,0.1344015]
[1765158435398,0.0109614,91222.0,91216.0,0.134402]
[1765158435593,0.12064,91217.0,91216.0,0.134402]
[1765158436998,0.15764,91217.0,91216.0,0.145402]
[1765158437504,0.15764,91217.0,91173.0,0.0667362]
[1765158437505,0.12064,91207.0,91206.0,0.00027411]
[1765158437693,0.12078199,91207.0,91206.0,0.06208411]
[1765158437895,0.12078199,91207.0,91206.0,0.00027411]
[1765158438995,0.12078199,91207.0,91206.0,0.12371411]
[1765158439403,0.15678199,91207.0,91206.0,0.12371411]
[1765158439597,0.03614199,91207.0,91206.0,0.16246411]
[1765158440099,0.03714199,91207.0,91206.0,0.16246411]
[1765158440499,0.10084199,91207.0,91206.0,0.16246411]
[1765158441206,0.15778199,91207.0,91206.0,0.16246411]
[1765158441404,0.15778199,91207.0,91189.0,0.01008872]
[1765158441405,0.12064,91171.0,91170.0,0.00013222]
[1765158441610,0.1207539,91171.0,91170.0,0.12357222]
[1765158442107,0.1207539,91171.0,91170.0,0.00013222]
[1765158442410,0.1316088,91160.0,91159.0,0.06181]
[1765158442712,0.3816088,91160.0,91159.0,0.06181]
[1765158442907,0.0109696,91154.0,91137.0,0.0109715]
[1765158443105,0.2609696,91154.0,91137.0,0.0109715]
[1765158443411,0.0109698,91152.0,91137.0,0.0109715]
[1765158444006,0.0637,91144.0,91143.0,0.12344]
[1765158444519,0.12064,91144.0,91134.0,0.03875]
[1765158444696,0.12064,91144.0,91131.0,0.12344]
[1765158444697,0.12064,91132.0,91131.0,0.12344]
[1765158445101,0.37064,91132.0,91131.0,0.12344]
[1765158445507,0.12064,91132.0,91131.0,0.12344]
[1765158446314,0.00012144,91143.0,91132.0,0.0109721]
[1765158446511,0.12076144,91143.0,91142.0,0.06181]
[1765158446814,0.00012144,91143.0,91142.0,0.134411]
[1765158447403,0.00012144,91143.0,91142.0,0.12344]
[1765158447607,0.15776144,91143.0,91142.0,0.12344]
[1765158447809,0.0637,91136.0,91135.0,0.12344]
[1765158448005,0.131611,91142.0,91130.0,0.0109724]
[1765158448309,0.12064,91142.0,91131.0,0.0109723]
[1765158448498,0.12064,91142.0,91124.0,0.03875]
[1765158448705,0.12064,91128.0,91127.0,0.06181]
[1765158449004,0.18841645,91140.0,91129.0,0.0109725]
[1765158449214,0.43841645,91140.0,91129.0,0.0109725]
[1765158449715,0.43841645,91140.0,91128.0,0.03875]
[1765158449716,0.12064,91140.0,91128.0,0.03875]
[1765158450008,0.31777645,91140.0,91130.0,0.0109724]
[1765158450212,0.12064,91127.0,91126.0,0.12371435]
[1765158450410,9.586e-05,91127.0,91126.0,0.12371435]
[1765158451709,0.00109586,91127.0,91126.0,0.13271435]
[1765158452721,0.03709586,91127.0,91126.0,0.13271435]
[1765158453607,0.02812402,91127.0,91126.0,0.46271435]
[1765158453918,0.02645,91164.0,91146.0,0.1620205]
[1765158453919,0.0109686,91162.0,91146.0,0.1620205]
[1765158454104,0.12064,91136.0,91135.0,0.12344]
[1765158454310,0.12064,91136.0,91126.0,0.00927435]
[1765158454311,0.1316128,91127.0,91126.0,0.00927435]
[1765158454607,0.1316128,91127.0,91100.0,0.0678867]
[1765158454608,0.0109748,91111.0,91110.0,0.12344]
[1765158454811,0.13171977,91111.0,91110.0,0.06181]
[1765158455019,0.1316154,91106.0,91105.0,0.06181]
[1765158455211,0.12064,91106.0,91105.0,0.12344]
[1765158455808,0.12064,91106.0,91100.0,0.00011025]
[1765158455809,0.15274497,91111.0,91110.0,0.12844]
[1765158456213,0.15274497,91111.0,91110.0,0.06681]
[1765158456414,0.12074497,91111.0,91110.0,0.06181]
[1765158456621,0.0746753,91106.0,91105.0,0.12744]
[1765158456818,0.1316153,91106.0,91105.0,0.12744]
[1765158458025,0.0746753,91106.0,91105.0,0.12344]
[1765158458221,0.1316153,91106.0,91105.0,0.12344]
[1765158458422,0.3826153,91106.0,91105.0,0.13144]
[1765158458622,0.3826153,91106.0,91105.0,0.008]
[1765158458827,0.3826153,91106.0,91105.0,0.07381]
[1765158458828,0.1626153,91106.0,91105.0,0.07381]
[1765158459420,0.1626153,91106.0,91105.0,0.13544]
[1765158459613,0.1626153,91106.0,91105.0,0.07381]
[1765158459924,0.4126153,91106.0,91105.0,0.13544]
[1765158460120,0.1626153,91106.0,91105.0,0.13544]
[1765158460326,0.031,91106.0,91105.0,0.13544]
[1765158461819,0.15412,91106.0,91105.0,0.13544]
[1765158462026,0.15412,91106.0,91105.0,0.07381]
[1765158462326,0.15412,91106.0,91105.0,0.12919]
[1765158462728,0.15412,91106.0,91105.0,0.012]
[1765158462916,0.40412,91106.0,91105.0,0.012]
[1765158463725,0.15412,91106.0,91105.0,0.012]
[1765158464227,0.0109766,91096.0,91087.0,0.11437]
[1765158464427,0.11759,91087.0,91070.0,0.03875]
[1765158464620,0.11759,91087.0,91086.0,0.11464447]
[1765158465322,0.11767941,91087.0,91086.0,0.11464447]
[1765158465525,8.941e-05,91087.0,91086.0,0.12562217]
[1765158465925,0.01808941,91087.0,91086.0,0.12762217]
[1765158466731,0.01808941,91087.0,91086.0,0.32762217]
[1765158466926,0.005,91087.0,91086.0,0.32862217]
[1765158467129,0.0109749,91110.0,91100.0,0.159176]
[1765158468125,0.00026012,91101.0,91100.0,0.159176]
[1765158468528,0.00026012,91101.0,91100.0,0.160176]
[1765158468727,0.02826012,91101.0,91100.0,0.580176]
[1765158469033,0.02826012,91101.0,91100.0,0.250176]
[1765158469223,0.02826012,91101.0,91100.0,0.440176]
[1765158469629,0.10243645,91140.0,91119.0,0.11437]
[1765158469833,0.10243645,91140.0,91113.0,0.03383]
[1765158469834,0.0109723,91131.0,91130.0,0.11437]
[1765158470033,0.0109713,91139.0,91138.0,0.11437]
[1765158470828,0.12866288,91139.0,91138.0,0.11437]
[1765158471329,0.17415339,91139.0,91138.0,0.11737]
[1765158471529,0.17415231,91139.0,91138.0,0.11737]
[1765158471933,0.17415231,91139.0,91138.0,0.11637]
[1765158471934,0.16415231,91139.0,91138.0,0.11637]
[1765158472536,0.16315231,91139.0,91138.0,0.11637]
[1765158472731,0.05556231,91139.0,91138.0,0.11737]
[1765158473142,0.04459101,91139.0,91138.0,0.11737]
[1765158473434,0.01010158,91139.0,91138.0,0.11637]
[1765158473636,0.00016462,91148.0,91147.0,0.11437]
[1765158474846,0.00916462,91148.0,91147.0,0.11637]
[1765158475235,0.00916462,91148.0,91147.0,0.16637]
[1765158475933,0.00016462,91148.0,91147.0,0.53437]
[1765158476135,0.1285581,91166.0,91165.0,0.11437]
[1765158476335,0.15305205,91166.0,91165.0,0.11437]
[1765158476732,0.14208395,91166.0,91165.0,0.11437]
[1765158477036,0.02449395,91166.0,91165.0,0.11437]
[1765158477643,0.03049395,91166.0,91165.0,0.11537]
[1765158477847,0.006,91166.0,91165.0,0.20537]
[1765158478238,0.006,91166.0,91165.0,0.20637]
[1765158478443,0.006,91166.0,91165.0,0.38637]
[1765158478633,0.12508,91166.0,91165.0,0.001]
[1765158478937,0.14954302,91166.0,91165.0,0.004]
[1765158479344,0.39854302,91166.0,91165.0,0.004]
[1765158479645,0.1223,91157.0,91156.0,0.11967462]
[1765158481046,0.1223,91157.0,91156.0,0.00016462]
[1765158481236,0.007,91166.0,91165.0,0.11951]
[1765158481441,0.006,91166.0,91165.0,0.11951]
[1765158481638,0.1283,91166.0,91165.0,0.11951]
[1765158481944,0.1564,91157.0,91156.0,0.00816462]
[1765158482143,0.43085049,91157.0,91156.0,0.00816462]
[1765158482441,0.71255049,91157.0,91127.0,0.06472]
[1765158482748,0.0109713,91140.0,91139.0,0.11951]
[1765158482939,0.0109713,91140.0,91132.0,0.0109721]
[1765158482940,0.0109693,91156.0,91130.0,0.06777645]
[1765158483139,0.07236,91151.0,91150.0,0.06134]
[1765158483342,0.08583867,91151.0,91150.0,0.11951]
[1765158483634,0.0763592,91157.0,91156.0,0.11951]
[1765158483833,0.16171436,91157.0,91156.0,0.11951]
[1765158484041,0.16171436,91157.0,91156.0,0.13351]
[1765158484246,0.15074516,91157.0,91156.0,0.13351]
[1765158484448,0.1564,91157.0,91156.0,0.014]
[1765158484750,0.1223,91152.0,91151.0,0.0723099]
[1765158485045,0.14674184,91152.0,91151.0,0.1304799]
[1765158485439,0.02444184,91152.0,91151.0,0.1304799]
[1765158486244,0.06091,91147.0,91141.0,0.00016462]
[1765158486450,0.133271,91142.0,91141.0,0.00016462]
[1765158486650,0.15771525,91142.0,91141.0,0.00016462]
[1765158487137,0.14674425,91142.0,91141.0,0.11967462]
[1765158487334,0.02444425,91142.0,91141.0,0.11967462]
[1765158487943,0.02544425,91142.0,91141.0,0.14167462]
[1765158488150,0.02544741,91142.0,91141.0,0.14167462]
[1765158488349,0.001,91142.0,91141.0,0.14167462]
[1765158495645,0.001,91142.0,91141.0,0.57167462]
[1765158495847,0.11673,91142.0,91141.0,0.14167462]
[1765158496149,0.001,91142.0,91141.0,0.14167462]
[1765158496940,0.05851,91142.0,91141.0,0.14167462]
[1765158497154,0.001,91142.0,91141.0,0.14167462]
[1765158498451,0.003,91142.0,91141.0,0.14167462]
[1765158499253,0.004,91142.0,91141.0,0.14167462]
[1765158499449,0.02858686,91142.0,91141.0,0.14167462]
[1765158499754,0.02758686,91142.0,91141.0,0.14567462]
[1765158500150,0.02758686,91142.0,91141.0,0.11967462]
[1765158500358,0.02758686,91142.0,91141.0,0.14267462]
[1765158501554,0.03855786,91142.0,91141.0,0.14267462]
[1765158502246,0.15428786,91142.0,91141.0,0.08517462]
[1765158502454,0.40428786,91142.0,91141.0,0.02316462]
[1765158504566,0.11573,91123.0,91122.0,0.11842]
[1765158505153,0.05751,91123.0,91122.0,0.11842]
[1765158505355,0.1267026,91129.0,91128.0,0.11842]
[1765158505559,0.15129933,91129.0,91128.0,0.11842]
[1765158505762,0.02459673,91129.0,91128.0,0.50842]
[1765158506061,0.11589462,91138.0,91137.0,0.11842]
[1765158506263,0.14048873,91138.0,91137.0,0.11842]
[1765158507256,0.14048873,91138.0,91137.0,0.12742]
[1765158508457,0.08526873,91138.0,91137.0,0.12742]
[1765158509261,0.14348873,91138.0,91137.0,0.12742]
[1765158509564,0.02775873,91138.0,91137.0,0.12742]
[1765158510356,0.02775873,91138.0,91137.0,0.47742]
[1765158510559,0.02775873,91138.0,91137.0,0.15742]
[1765158510861,0.02775873,91138.0,91137.0,0.47742]
[1765158511062,0.00316462,91138.0,91137.0,0.47742]
[1765158511461,0.02777875,91138.0,91137.0,0.47742]
[1765158511762,0.00316462,91138.0,91137.0,0.47742]
[1765158512256,0.02777957,91138.0,91137.0,0.47742]
[1765158512462,0.02777957,91138.0,91137.0,0.12742]
[1765158512663,0.02777957,91138.0,91137.0,0.13742]
[1765158513064,0.00316462,91138.0,91137.0,0.13742]
[1765158513260,0.02777676,91138.0,91137.0,0.13742]
[1765158513462,0.05899921,91159.0,91157.0,0.11842]
[1765158513763,0.05899921,91159.0,91155.0,0.0109694]
[1765158513764,0.0109689,91159.0,91158.0,0.11842]
[1765158514468,0.1266985,91163.0,91162.0,0.11842]
[1765158514672,0.00016462,91168.0,91150.0,0.01996]
[1765158514673,0.00016462,91168.0,91167.0,0.11842]
[1765158514863,0.11589462,91168.0,91167.0,0.11842]
[1765158516962,0.11989462,91168.0,91167.0,0.11942]
[1765158517277,0.37589462,91168.0,91167.0,0.001]
[1765158517568,0.15247,91150.0,91121.0,0.0109734]
[1765158517775,0.15247,91150.0,91101.0,0.11852528]
[1765158517776,0.05751,91102.0,91101.0,0.11852528]
[1765158517973,0.11573,91102.0,91101.0,0.11852528]
[1765158518369,0.14941544,91120.0,91101.0,0.11852528]
[1765158518370,0.010974,91118.0,91101.0,0.43010528]
[1765158518566,0.0358,91120.0,91110.0,0.0109748]
[1765158518768,0.0358,91120.0,91101.0,0.43010528]
[1765158518769,0.05751,91120.0,91119.0,0.11842]
[1765158519076,0.11573,91117.0,91116.0,0.010974]
[1765158519272,0.11573,91117.0,91116.0,0.072984]
[1765158519476,0.05767462,91124.0,91123.0,0.11842]
[1765158520263,0.11589462,91124.0,91123.0,0.11842]
[1765158521073,0.11689462,91124.0,91123.0,0.12042]
[1765158521670,0.11143462,91124.0,91123.0,0.12042]
[1765158522673,0.11143462,91124.0,91123.0,0.002]
[1765158523977,0.36143462,91124.0,91123.0,0.002]
[1765158525279,0.11143462,91124.0,91123.0,0.05782]
[1765158525478,0.13586644,91124.0,91123.0,0.05782]
[1765158526182,0.13586644,91124.0,91123.0,0.002]
[1765158527084,0.36143462,91124.0,91123.0,0.002]
[1765158527686,0.38586238,91124.0,91123.0,0.002]
[1765158528078,0.12995,91102.0,91094.0,0.0109766]
[1765158528481,0.12995,91102.0,91086.0,0.00027447]
[1765158528482,0.12995,91102.0,91097.0,0.0109763]
[1765158528682,0.10751,91102.0,91101.0,0.10909528]
[1765158528980,0.1184852,91107.0,91106.0,0.10899]
[1765158529173,0.14291421,91107.0,91106.0,0.10899]
[1765158529379,0.10751,91102.0,91101.0,0.05592528]
[1765158529574,0.1204858,91102.0,91101.0,0.12209528]
[1765158529978,0.1204858,91102.0,91101.0,0.12409528]
[1765158530176,0.1542458,91102.0,91101.0,0.01510528]
[1765158530379,0.1542458,91102.0,90806.0,0.51338284]
[1765158530380,0.1184876,91087.0,91086.0,7e-08]
[1765158530583,0.27441746,91087.0,91049.0,0.0109821]
[1765158530793,0.27441746,91087.0,91077.0,0.10899]
[1765158530794,0.0109787,91078.0,91077.0,0.10899]
[1765158530978,0.00016462,91096.0,91089.0,0.10899]
[1765158530979,0.0109773,91090.0,91089.0,0.10899]
[1765158531179,0.1184873,91090.0,91089.0,0.05582]
[1765158531378,0.36856885,91090.0,91070.0,0.0109796]
[1765158531581,0.05975,91087.0,91086.0,0.10899]
[1765158532181,0.11151,91087.0,91086.0,0.10899]
[1765158532887,0.12051,91087.0,91086.0,0.11099]
[1765158533093,0.11651,91087.0,91086.0,0.11099]
[1765158533289,0.11651,91087.0,91086.0,0.002]
[1765158533988,0.11951,91087.0,91086.0,0.002]
[1765158535798,0.012,91087.0,91086.0,0.54099]
[1765158536087,0.012,91087.0,91086.0,0.11099]
[1765158536288,0.11951,91087.0,91086.0,0.002]
[1765158538493,0.36951,91087.0,91086.0,0.002]
[1765158538991,0.11951,91087.0,91086.0,0.05372]
[1765158539196,0.11951,91087.0,91086.0,0.10424]
[1765158539385,0.06775,91087.0,91086.0,0.10424]
[1765158540197,0.11878,91087.0,91086.0,0.10424]
[1765158540394,0.11878,91087.0,91086.0,0.002]
[1765158540799,0.36878,91087.0,91086.0,0.002]
[1765158541790,0.11878,91087.0,91086.0,0.10424]
[1765158541987,0.012,91087.0,91086.0,0.10424]
[1765158542493,0.012,91087.0,91086.0,0.49424]
[1765158543386,0.00016471,91099.0,91098.0,0.10224]
[1765158543697,0.08977408,91117.0,91116.0,0.13315]
[1765158543698,0.0109741,91117.0,91116.0,0.13315]
[1765158543889,0.0389988,91117.0,91116.0,0.13315]
[1765158544085,0.03899865,91117.0,91116.0,0.10224]
[1765158544294,4.743e-05,91117.0,91116.0,0.13315]
[1765158545096,4.743e-05,91117.0,91116.0,0.33315]
[1765158545296,4.743e-05,91117.0,91116.0,0.13315]
[1765158545501,0.01204743,91117.0,91116.0,0.13615]
[1765158546095,0.01504743,91117.0,91116.0,0.13615]
[1765158546290,0.04312944,91117.0,91116.0,0.13615]
[1765158547897,0.03802425,91117.0,91116.0,0.94615]
[1765158548098,0.00016471,91126.0,91125.0,0.113213]
[1765158548300,0.00016471,91126.0,91125.0,0.513213]
[1765158549300,0.00116471,91126.0,91125.0,0.513213]
[1765158549698,0.00316471,91126.0,91125.0,0.517213]
[1765158549901,0.0638606,91145.0,91144.0,0.10224]
[1765158550102,0.1148906,91145.0,91144.0,0.10224]
[1765158551297,0.0109716,91137.0,91136.0,0.10224]
[1765158551791,0.1186316,91137.0,91136.0,0.10224]
[1765158552006,0.1091,91136.0,91135.0,0.00016462]
[1765158552915,0.3591,91136.0,91135.0,0.00016462]
[1765158553202,0.1091,91109.0,91108.0,0.05302]
[1765158553414,0.1091,91109.0,91108.0,0.10854]
[1765158553598,0.14501494,91135.0,91134.0,0.05302]
[1765158553899,0.28154,91135.0,91114.0,0.11361544]
[1765158554100,0.0109725,91130.0,91123.0,0.0109732]
[1765158555200,0.0109725,91130.0,91123.0,0.0119732]
[1765158555507,0.0119725,91130.0,91123.0,0.0179732]
[1765158555802,0.001,91130.0,91126.0,0.0664928]
[1765158556007,0.001,91130.0,91129.0,0.10854]
[1765158556197,0.001,91130.0,91129.0,0.09854]
[1765158557197,0.10926462,91134.0,91133.0,0.05302]
[1765158558104,0.00016462,91134.0,91133.0,0.10854]
[1765158558306,0.00116462,91134.0,91133.0,0.46454]
[1765158558810,0.01097,91150.0,91133.0,0.356]
[1765158559112,0.05433,91157.0,91156.0,0.10854]
[1765158559404,0.14064,91157.0,91156.0,0.05302]
[1765158559798,0.0109688,91160.0,91159.0,0.10854]
[1765158559997,0.1900688,91160.0,91159.0,0.10854]
[1765158560196,0.21797772,91160.0,91159.0,0.10854]
[1765158560403,0.14797772,91160.0,91159.0,0.10854]
[1765158561109,0.05433,91154.0,91153.0,0.05302]